fUST/lending_fUST_20250908
["ID","MTS","AMOUNT","RATE_DAILY","PERIOD"]
[384127147,1757262647119,-217.60587337,0.00013759,2]
[384127148,1757262647133,-203.24090201,0.00013759,2]
[384127149,1757262647143,-417.15472785,0.00013759,2]
[384127150,1757262647152,-233.01044003,0.00013759,2]
[384127151,1757262647162,-530.64473063,0.00013759,2]
[384127152,1757262647173,-160.0,0.00013759,2]
[384127153,1757262647183,-300.0,0.00013961,2]
[384127154,1757262647193,-300.0,0.00013961,2]
[384127155,1757262647205,-300.0,0.00013961,2]
[384127156,1757262647215,-300.0,0.00013961,2]
[384127157,1757262647227,-300.0,0.00013961,2]
[384127158,1757262647242,-300.0,0.00013961,2]
[384127159,1757262647259,-300.0,0.00013961,2]
[384127160,1757262647272,-300.0,0.00013961,2]
[384127161,1757262647284,-300.0,0.00013961,2]
[384127162,1757262647299,-300.0,0.00013961,2]
[384127163,1757262647314,-300.0,0.00013961,2]
[384127164,1757262647328,-300.0,0.00013961,2]
[384127165,1757262647341,-300.0,0.00013961,2]
[384127166,1757262647357,-300.0,0.00013961,2]
[384127167,1757262647371,-113.40685152,0.00013961,2]
[384127178,1757262759521,300.0,0.00013541,2]
[384127182,1757262783895,220.57013586,0.00013541,2]
[384127186,1757262818462,613.52,0.00013598,2]
[384127191,1757262978007,182.27040103,0.00013597,2]
[384127196,1757263081423,-1200.0,0.00013696,2]
[384127197,1757263081455,-300.0,0.00013696,2]
[384127198,1757263081487,-157.52932422,0.00013697,2]
[384127199,1757263081518,-379.07440672,0.00013697,2]
[384127200,1757263081548,-915.10294719,0.00013697,2]
[384127201,1757263081578,-500.0,0.00013697,2]
[384127202,1757263081607,-915.10294719,0.00013697,2]
[384127203,1757263081634,-351.28780217,0.00013697,2]
[384127204,1757263081810,-563.81514502,0.00013697,2]
[384127205,1757263081839,-915.10294719,0.00013697,2]
[384127206,1757263081868,-915.10294719,0.00013697,2]
[384127207,1757263081896,-915.10294719,0.00013697,2]
[384127208,1757263081924,-915.10294719,0.00013697,2]
[384127209,1757263081953,-636.45318525,0.00013697,2]
[384127210,1757263082071,-278.64976194,0.00013697,2]
[384127211,1757263082102,-915.10294719,0.00013697,2]
[384127212,1757263082132,-915.10294719,0.00013697,2]
[384127213,1757263082160,-915.10294719,0.00013697,2]
[384127214,1757263082188,-915.10294719,0.00013697,2]
[384127215,1757263082217,-915.10294719,0.00013697,2]
[384127216,1757263082408,-915.10294719,0.00013697,2]
[384127217,1757263082437,-915.10294719,0.00013697,2]
[384127218,1757263082465,-915.10294719,0.00013697,2]
[384127219,1757263082494,-915.10294719,0.00013697,2]
[384127220,1757263082522,-915.10294719,0.00013697,2]
[384127221,1757263082840,-915.10294719,0.00013697,2]
[384127222,1757263082871,-915.10294719,0.00013697,2]
[384127223,1757263082900,-915.10294719,0.00013697,2]
[384127224,1757263082932,-915.10294719,0.00013697,2]
[384127225,1757263082963,-915.10294719,0.00013697,2]
[384127252,1757263187043,213.4367336,0.00012872,2]
[384127268,1757263548154,10000.0,0.00012816,2]
[384127270,1757263593069,109082.2125736,0.00012816,2]
[384127271,1757263715725,490.0,0.00013696,2]
[384127290,1757263831839,-300.0,0.00013696,2]
[384127291,1757263831849,-437.13219998,0.00013696,2]
[384127446,1757263839932,-762.86780002,0.00013696,2]
[384127447,1757263839942,-915.10294719,0.00013697,2]
[384127448,1757263839952,-915.10294719,0.00013697,2]
[384127450,1757263839962,-915.10294719,0.00013697,2]
[384127451,1757263839971,-915.10294719,0.00013697,2]
[384127452,1757263839981,-915.10294719,0.00013697,2]
[384127453,1757263839991,-915.10294719,0.00013697,2]
[384127454,1757263840000,-915.10294719,0.00013697,2]
[384127455,1757263840010,-915.10294719,0.00013697,2]
[384127457,1757263840019,-915.10294719,0.00013697,2]
[384127458,1757263840029,-915.10294719,0.00013697,2]
[384127460,1757263840039,-915.10294719,0.00013697,2]
[384127462,1757263840049,-915.10294719,0.00013697,2]
[384127464,1757263840059,-915.10294719,0.00013697,2]
[384127466,1757263840067,-915.10294719,0.00013697,2]
[384127468,1757263840077,-915.10294719,0.00013697,2]
[384127470,1757263840087,-915.10294719,0.00013697,2]
[384127472,1757263840097,-915.10294719,0.00013697,2]
[384127474,1757263840106,-915.10294719,0.00013697,2]
[384127476,1757263840116,-915.10294719,0.00013697,2]
[384127478,1757263840126,-915.10294719,0.00013697,2]
[384127480,1757263840135,-915.10294719,0.00013697,2]
[384127482,1757263840145,-915.10294719,0.00013697,2]
[384127484,1757263840155,-915.10294719,0.00013697,2]
[384127486,1757263840165,-915.10294719,0.00013697,2]
[384127488,1757263840174,-915.10294719,0.00013697,2]
[384127490,1757263840184,-915.10294719,0.00013697,2]
[384127492,1757263840194,-915.10294719,0.00013697,2]
[384127493,1757263840203,-915.10294719,0.00013697,2]
[384127494,1757263840212,-915.10294719,0.00013697,2]
[384127495,1757263840221,-915.10294719,0.00013697,2]
[384127496,1757263840231,-915.10294719,0.00013697,2]
[384127497,1757263840240,-720.11601716,0.00013697,2]
[384127508,1757263842953,-194.98693003,0.00013697,2]
[384127509,1757263842964,-915.10294719,0.00013697,2]
[384127510,1757263842973,-915.10294719,0.00013697,2]
[384127511,1757263842983,-134.18843475,0.00013697,2]
[384127512,1757263843007,-780.91451244,0.00013697,2]
[384127513,1757263843017,-915.10294719,0.00013697,2]
[384127514,1757263843027,-915.10294719,0.00013697,2]
[384127515,1757263843036,-915.10294719,0.00013697,2]
[384127516,1757263843046,-915.10294719,0.00013697,2]
[384127517,1757263843056,-915.10294719,0.00013697,2]
[384127518,1757263843065,-915.10294719,0.00013697,2]
[384127519,1757263843075,-915.10294719,0.00013697,2]
[384127520,1757263843084,-915.10294719,0.00013697,2]
[384127521,1757263843094,-915.10294719,0.00013697,2]
[384127522,1757263843104,-915.10294719,0.00013697,2]
[384127523,1757263843113,-898.46471178,0.00013697,2]
[384127524,1757263843123,-407.52130388,0.00013697,2]
[384127534,1757263846024,-490.9434079,0.00013697,2]
[384127535,1757263846034,-244.10623524,0.00013697,2]
[384127538,1757263900851,4178.0,0.00028942,60]
[384127540,1757263923222,300.0,0.00013696,2]
[384127549,1757263983425,300.0,0.00013696,2]
[384127572,1757264043452,300.0,0.00013696,2]
[384127608,1757264102865,300.0,0.00013696,2]
[384127625,1757264140658,8800.01,0.00013598,2]
[384127626,1757264140683,10000.01,0.00013598,2]
[384127627,1757264140707,10000.01,0.00013598,2]
[384127628,1757264140730,10000.01,0.00013598,2]
[384127629,1757264140754,10000.01,0.00013598,2]
[384127630,1757264140778,3406.77199154,0.00013598,2]
[384127953,1757264341586,503.35,0.00012329,2]
[384127955,1757264372645,360.9,0.00012329,2]
[384127965,1757264863048,1000.0,0.0001282,2]
[384127966,1757264872629,31448.9572506,0.0001282,2]
[384127971,1757264988921,10000.0,0.00012835,2]
[384127972,1757265008161,191.73377942,0.00013287,2]
[384128370,1757265037909,-800.0,0.00013626,2]
[384128371,1757265037920,-300.0,0.00013696,2]
[384128372,1757265037930,-654.35847654,0.00013697,2]
[384128373,1757265037939,-898.46471178,0.00013697,2]
[384128374,1757265037949,-898.46471178,0.00013697,2]
[384128376,1757265037959,-898.46471178,0.00013697,2]
[384128378,1757265037968,-898.46471178,0.00013697,2]
[384128380,1757265037978,-351.12512225,0.00013697,2]
[384128382,1757265037990,-547.33958953,0.00013697,2]
[384128384,1757265037999,-898.46471178,0.00013697,2]
[384128386,1757265038009,-898.46471178,0.00013697,2]
[384128388,1757265038019,-564.30377473,0.00013697,2]
[384128391,1757265038054,-334.16093705,0.00013697,2]
[384128392,1757265038064,-211.73086781,0.00013697,2]
[384128402,1757265040071,-686.73384397,0.00013697,2]
[384128403,1757265040080,-898.46471178,0.00013697,2]
[384128404,1757265040090,-306.35528285,0.00013697,2]
[384128405,1757265040125,-592.10942893,0.00013697,2]
[384128406,1757265040135,-547.35161797,0.00013697,2]
[384128407,1757265040148,-351.11309381,0.00013697,2]
[384128408,1757265040158,-212.16350984,0.00013697,2]
[384128409,1757265040171,-600.14816389,0.00013697,2]
[384128410,1757265040183,-86.15303805,0.00013697,2]
[384128411,1757265040193,-898.46471178,0.00013697,2]
[384128412,1757265040203,-898.46471178,0.00013697,2]
[384128413,1757265040213,-898.46471178,0.00013697,2]
[384128414,1757265040223,-898.46471178,0.00013697,2]
[384128415,1757265040233,-506.54048646,0.00013697,2]
[384128416,1757265040244,-391.92422532,0.00013697,2]
[384128417,1757265040254,-898.46471169,0.00013697,2]
[384128418,1757265040264,-184.78248322,0.00013697,2]
[384128419,1757265040274,-205.34702904,0.00013697,2]
[384128420,1757265040283,-497.59974259,0.00013697,2]
[384128421,1757265040293,-500.0,0.00013697,2]
[384128422,1757265040303,-553.69664648,0.00013697,2]
[384128423,1757265040312,-500.0,0.00013697,2]
[384128424,1757265040321,-500.0,0.00013697,2]
[384128425,1757265040331,-500.0,0.00013697,2]
[384128426,1757265040341,-568.7329725,0.00013697,2]
[384128427,1757265040350,-356.50180014,0.00013697,2]
[384128428,1757265040360,-500.0,0.00013697,2]
[384128429,1757265040370,-500.0,0.00013697,2]
[384128430,1757265040380,-500.0,0.00013697,2]
[384128431,1757265040389,-500.0,0.00013697,2]
[384128432,1757265040399,-500.0,0.00013697,2]
[384128433,1757265040409,-500.0,0.00013697,2]
[384128434,1757265040419,-500.0,0.00013697,2]
[384128435,1757265040429,-500.0,0.00013697,2]
[384128436,1757265040439,-500.0,0.00013697,2]
[384128437,1757265040448,-500.0,0.00013697,2]
[384128438,1757265040458,-500.0,0.00013697,2]
[384128439,1757265040468,-500.0,0.00013697,2]
[384128440,1757265040478,-500.0,0.00013697,2]
[384128441,1757265040488,-500.0,0.00013697,2]
[384128442,1757265040497,-400.0,0.00013697,2]
[384128443,1757265040507,-216.47823999,0.00013697,2]
[384128445,1757265040517,-500.0,0.00013697,2]
[384128447,1757265040526,-500.0,0.00013697,2]
[384128448,1757265040535,-296.85615194,0.00013697,2]
[384128449,1757265040545,-500.0,0.00013697,2]
[384128450,1757265040554,-500.0,0.00013697,2]
[384128452,1757265040564,-500.0,0.00013697,2]
[384128454,1757265040573,-300.0,0.00013697,2]
[384128456,1757265040583,-303.59869365,0.00013697,2]
[384128458,1757265040592,-500.0,0.00013697,2]
[384128459,1757265040601,-500.0,0.00013697,2]
[384128460,1757265040610,-500.0,0.00013697,2]
[384128462,1757265040620,-500.0,0.00013697,2]
[384128464,1757265040629,-500.0,0.00013697,2]
[384128466,1757265040639,-500.0,0.00013697,2]
[384128468,1757265040649,-500.0,0.00013697,2]
[384128470,1757265040659,-7044.68849579,0.00013697,2]
[384128472,1757265040668,-500.0,0.00013697,2]
[384128474,1757265040678,-500.0,0.00013697,2]
[384128475,1757265040687,-189.07062447,0.00013697,2]
[384128477,1757265040707,-310.92937553,0.00013697,2]
[384128479,1757265040717,-500.0,0.00013697,2]
[384128481,1757265040727,-344.11149811,0.00013697,2]
[384128483,1757265040737,-500.0,0.00013697,2]
[384128485,1757265040747,-500.0,0.00013697,2]
[384128487,1757265040759,-500.0,0.00013697,2]
[384128489,1757265040768,-500.0,0.00013697,2]
[384128491,1757265040778,-500.0,0.00013697,2]
[384128493,1757265040787,-300.0,0.00013697,2]
[384128495,1757265040797,-500.0,0.00013697,2]
[384128497,1757265040806,-500.0,0.00013697,2]
[384128499,1757265040816,-500.0,0.00013697,2]
[384128501,1757265040825,-500.0,0.00013697,2]
[384128503,1757265040835,-500.0,0.00013697,2]
[384128505,1757265040845,-420.32303843,0.00013697,2]
[384128507,1757265040853,-500.0,0.00013697,2]
[384128509,1757265040863,-500.0,0.00013697,2]
[384128511,1757265040873,-500.0,0.00013697,2]
[384128512,1757265040884,-500.0,0.00013697,2]
[384128514,1757265040893,-500.0,0.00013697,2]
[384128516,1757265040902,-500.0,0.00013697,2]
[384128518,1757265040912,-500.0,0.00013697,2]
[384128521,1757265040922,-300.0,0.00013697,2]
[384128523,1757265040931,-500.0,0.00013697,2]
[384128525,1757265040941,-500.0,0.00013697,2]
[384128527,1757265040949,-178.9051702,0.00013697,2]
[384128752,1757265043216,-321.0948298,0.00013697,2]
[384128753,1757265043226,-489.49706716,0.00013697,2]
[384128754,1757265043238,-10.50293284,0.00013697,2]
[384128755,1757265043247,-500.0,0.00013697,2]
[384128756,1757265043257,-500.0,0.00013697,2]
[384128757,1757265043266,-500.0,0.00013697,2]
[384128758,1757265043276,-500.0,0.00013697,2]
[384128760,1757265043285,-500.0,0.00013697,2]
[384128761,1757265043295,-500.0,0.00013697,2]
[384128762,1757265043304,-282.6297841,0.00013697,2]
[384128763,1757265043313,-500.0,0.00013697,2]
[384128764,1757265043322,-500.0,0.00013697,2]
[384128765,1757265043331,-160.11923638,0.00013697,2]
[384128767,1757265043340,-276.86110903,0.00013697,2]
[384128769,1757265043349,-500.0,0.00013697,2]
[384128771,1757265043359,-500.0,0.00013697,2]
[384128773,1757265043368,-500.0,0.00013697,2]
[384128775,1757265043378,-500.0,0.00013697,2]
[384128777,1757265043387,-500.0,0.00013697,2]
[384128779,1757265043396,-500.0,0.00013697,2]
[384128781,1757265043406,-500.0,0.00013697,2]
[384128783,1757265043416,-500.0,0.00013697,2]
[384128785,1757265043426,-500.0,0.00013697,2]
[384128787,1757265043436,-500.0,0.00013697,2]
[384128789,1757265043446,-500.0,0.00013697,2]
[384128791,1757265043456,-500.0,0.00013697,2]
[384128793,1757265043465,-500.0,0.00013697,2]
[384128795,1757265043475,-558.97552154,0.00013697,2]
[384128797,1757265043484,-500.0,0.00013697,2]
[384128799,1757265043494,-500.0,0.00013697,2]
[384128801,1757265043504,-500.0,0.00013697,2]
[384128803,1757265043513,-500.0,0.00013697,2]
[384128805,1757265043522,-500.0,0.00013697,2]
[384128807,1757265043531,-500.0,0.00013697,2]
[384128809,1757265043540,-500.0,0.00013697,2]
[384128810,1757265043550,-500.0,0.00013697,2]
[384128812,1757265043559,-500.0,0.00013697,2]
[384128814,1757265043568,-500.0,0.00013697,2]
[384128816,1757265043577,-500.0,0.00013697,2]
[384128818,1757265043587,-500.0,0.00013697,2]
[384128820,1757265043596,-500.0,0.00013697,2]
[384128822,1757265043605,-500.0,0.00013697,2]
[384128824,1757265043615,-650.82500187,0.00013697,2]
[384128826,1757265043624,-500.0,0.00013697,2]
[384128828,1757265043634,-500.0,0.00013697,2]
[384128830,1757265043644,-500.0,0.00013697,2]
[384128832,1757265043653,-500.0,0.00013697,2]
[384128834,1757265043663,-2014.4773094,0.00013697,2]
[384128836,1757265043672,-480.0,0.00013698,2]
[384128838,1757265043682,-480.0,0.00013698,2]
[384128840,1757265043691,-480.0,0.00013698,2]
[384128842,1757265043700,-151.0,0.00013698,2]
[384128844,1757265043710,-151.0,0.00013698,2]
[384128846,1757265043719,-151.0,0.00013698,2]
[384128848,1757265043728,-151.0,0.00013698,2]
[384128850,1757265043738,-480.0,0.00013698,2]
[384128852,1757265043748,-540.61,0.00013698,2]
[384128854,1757265043760,-151.0,0.00013698,2]
[384128856,1757265043769,-151.0,0.00013698,2]
[384128858,1757265043779,-151.0,0.00013698,2]
[384128860,1757265043788,-151.0,0.00013698,2]
[384128862,1757265043798,-152.461785,0.00013698,2]
[384128864,1757265043807,-667.22,0.00013698,2]
[384128866,1757265043817,-775.9,0.00013698,2]
[384128868,1757265043827,-609.38,0.00013698,2]
[384128870,1757265043837,-151.0,0.00013698,2]
[384128872,1757265043846,-151.0,0.00013698,2]
[384128874,1757265043856,-226.302497,0.00013698,2]
[384128876,1757265043866,-151.0,0.00013698,2]
[384128878,1757265043875,-151.0,0.00013698,2]
[384128880,1757265043885,-547.23,0.00013698,2]
[384128882,1757265043894,-749.72,0.00013698,2]
[384128884,1757265043903,-185.50753057,0.00013698,2]
[384128886,1757265043913,-480.0,0.00013698,2]
[384128888,1757265043923,-503.3,0.00013698,2]
[384128889,1757265043932,-480.0,0.00013698,2]
[384128891,1757265043942,-151.0,0.00013698,2]
[384128893,1757265043952,-151.0,0.00013698,2]
[384128895,1757265043961,-151.0,0.00013698,2]
[384128897,1757265043971,-151.0,0.00013698,2]
[384128899,1757265043981,-154.32968,0.00013698,2]
[384128901,1757265043991,-151.0,0.00013698,2]
[384128903,1757265044000,-151.0,0.00013698,2]
[384128918,1757265044129,-480.0,0.00013698,2]
[384128921,1757265044141,-151.0,0.00013698,2]
[384128923,1757265044150,-480.0,0.00013698,2]
[384128925,1757265044160,-480.0,0.00013698,2]
[384128927,1757265044169,-151.0,0.00013698,2]
[384128929,1757265044179,-491.28,0.00013698,2]
[384128931,1757265044188,-480.0,0.00013698,2]
[384128933,1757265044197,-480.0,0.00013698,2]
[384128934,1757265044207,-480.0,0.00013698,2]
[384128936,1757265044217,-480.0,0.00013698,2]
[384128938,1757265044227,-480.0,0.00013698,2]
[384128940,1757265044237,-480.0,0.00013698,2]
[384128942,1757265044246,-480.0,0.00013698,2]
[384128944,1757265044256,-480.0,0.00013698,2]
[384128946,1757265044265,-469.98,0.00013698,2]
[384128948,1757265044274,-480.0,0.00013698,2]
[384128950,1757265044284,-480.0,0.00013698,2]
[384128952,1757265044294,-480.0,0.00013698,2]
[384128954,1757265044303,-151.0,0.00013698,2]
[384128956,1757265044315,-151.0,0.00013698,2]
[384128958,1757265044323,-155.108245,0.00013698,2]
[384128960,1757265044333,-555.23,0.00013698,2]
[384128962,1757265044343,-151.0,0.00013698,2]
[384128964,1757265044352,-480.0,0.00013698,2]
[384128966,1757265044361,-524.45,0.00013698,2]
[384128969,1757265044371,-480.0,0.00013698,2]
[384128971,1757265044381,-480.0,0.00013698,2]
[384128972,1757265044391,-480.0,0.00013698,2]
[384128974,1757265044400,-480.0,0.00013698,2]
[384128976,1757265044411,-480.0,0.00013698,2]
[384128978,1757265044420,-480.0,0.00013698,2]
[384128980,1757265044430,-749.88,0.00013698,2]
[384128983,1757265044440,-151.0,0.00013698,2]
[384128985,1757265044449,-481.65,0.00013698,2]
[384128987,1757265044458,-480.0,0.00013698,2]
[384128989,1757265044468,-777.94,0.00013698,2]
[384128991,1757265044477,-151.0,0.00013698,2]
[384128993,1757265044487,-151.0,0.00013698,2]
[384128995,1757265044496,-151.0,0.00013698,2]
[384128997,1757265044506,-530.2,0.00013698,2]
[384128999,1757265044516,-151.0,0.00013698,2]
[384129001,1757265044525,-151.0,0.00013698,2]
[384129003,1757265044535,-151.0,0.00013698,2]
[384129004,1757265044544,-151.0,0.00013698,2]
[384129006,1757265044553,-201.05749,0.00013698,2]
[384129009,1757265044563,-151.0,0.00013698,2]
[384129011,1757265044573,-151.0,0.00013698,2]
[384129013,1757265044583,-151.0,0.00013698,2]
[384129015,1757265044593,-298.61212,0.00013698,2]
[384129017,1757265044602,-480.0,0.00013698,2]
[384129019,1757265044611,-480.0,0.00013698,2]
[384129021,1757265044621,-306.10151803,0.00013698,2]
[384129023,1757265044630,-480.0,0.00013698,2]
[384129025,1757265044639,-826.29,0.00013698,2]
[384129027,1757265044649,-480.0,0.00013698,2]
[384129029,1757265044658,-593.72,0.00013698,2]
[384129030,1757265044667,-151.0,0.00013698,2]
[384129032,1757265044676,-480.0,0.00013698,2]
[384129034,1757265044685,-480.0,0.00013698,2]
[384129036,1757265044695,-480.0,0.00013698,2]
[384129038,1757265044705,-644.68,0.00013698,2]
[384129040,1757265044715,-480.0,0.00013698,2]
[384129043,1757265044725,-480.0,0.00013698,2]
[384129044,1757265044734,-286.99555922,0.00013698,2]
[384129046,1757265044743,-480.0,0.00013698,2]
[384129048,1757265044757,-480.0,0.00013698,2]
[384129050,1757265044766,-480.0,0.00013698,2]
[384129052,1757265044775,-729.64,0.00013698,2]
[384129054,1757265044785,-480.0,0.00013698,2]
[384129056,1757265044795,-152.673523,0.00013698,2]
[384129058,1757265044804,-244.533514,0.00013698,2]
[384129060,1757265044814,-480.0,0.00013698,2]
[384129062,1757265044826,-517.91,0.00013698,2]
[384129064,1757265044835,-151.0,0.00013698,2]
[384129066,1757265044844,-572.75,0.00013698,2]
[384129068,1757265044854,-151.0,0.00013698,2]
[384129070,1757265044863,-240.138898,0.00013698,2]
[384129072,1757265044873,-3120.16,0.00013698,2]
[384129074,1757265044882,-330.66674502,0.00013698,2]
[384129076,1757265044898,-451.93018695,0.00013698,2]
[384129079,1757265044909,-1586.59013193,0.00013698,2]
[384129194,1757265046093,-650.998744,0.00013698,2]
[384129211,1757265046252,-955.4341921,0.00013698,2]
[384129213,1757265046261,-897.17,0.00013698,2]
[384129215,1757265046271,-977.73,0.00013698,2]
[384129217,1757265046281,-151.0,0.00013698,2]
[384129219,1757265046290,-151.0,0.00013698,2]
[384129221,1757265046299,-151.0,0.00013698,2]
[384129223,1757265046308,-151.0,0.00013698,2]
[384129225,1757265046317,-151.0,0.00013698,2]
[384129227,1757265046326,-151.0,0.00013698,2]
[384129229,1757265046336,-151.0,0.00013698,2]
[384129231,1757265046345,-151.0,0.00013698,2]
[384129233,1757265046354,-151.0,0.00013698,2]
[384129235,1757265046363,-151.0,0.00013698,2]
[384129237,1757265046372,-151.0,0.00013698,2]
[384129239,1757265046381,-151.0,0.00013698,2]
[384129240,1757265046392,-480.0,0.00013698,2]
[384129242,1757265046401,-151.0,0.00013698,2]
[384129244,1757265046410,-480.0,0.00013698,2]
[384129246,1757265046420,-151.0,0.00013698,2]
[384129248,1757265046432,-151.0,0.00013698,2]
[384129250,1757265046441,-663.73,0.00013698,2]
[384129252,1757265046450,-595.81,0.00013698,2]
[384129254,1757265046459,-480.0,0.00013698,2]
[384129256,1757265046468,-480.0,0.00013698,2]
[384129258,1757265046478,-480.0,0.00013698,2]
[384129260,1757265046487,-480.0,0.00013698,2]
[384129262,1757265046496,-18856.74320253,0.00013698,2]
[384129862,1757265134352,8796.545593,0.00012801,2]
[384129946,1757265465262,800.0,0.00013474,2]
[384129947,1757265465315,800.0,0.00013672,2]
[384129948,1757265497189,162.80219612,0.00013442,2]
[384129949,1757265505135,800.0,0.00013431,2]
[384129950,1757265511573,250.10811194,0.00013555,2]
[384129951,1757265529900,195.758807,0.00012876,2]
[384129952,1757265530206,195.758807,0.000235,30]
[384129953,1757265530518,195.758807,0.00013577,4]
[384129954,1757265536876,250.10811194,0.00013555,2]
[384129955,1757265561185,250.10811194,0.00013555,2]
[384129956,1757265584490,250.10811194,0.00013555,2]
[384129957,1757265586360,12937.99213512,0.00013598,2]
[384129959,1757265607941,250.10811194,0.00013555,2]
[384129960,1757265609191,19292.2273969,0.0001369,2]
[384129961,1757265612251,2105.41764886,0.0001369,2]
[384129962,1757265637324,250.10811194,0.00013555,2]
[384129964,1757265660987,250.10811194,0.00013555,2]
[384129965,1757265685189,250.10811194,0.00013555,2]
[384129967,1757265708370,250.10811194,0.00013555,2]
[384129968,1757265732015,250.10811194,0.00013555,2]
[384129970,1757265756489,1962.12578282,0.0001356,2]
[384129972,1757265779339,1962.12578282,0.0001356,2]
[384129973,1757265803685,197.44357049,0.0001356,2]
[384129974,1757265909063,3017.6610041,0.0001369,2]
[384129975,1757265909613,1525.5268036,0.0001369,2]
[384129976,1757265944220,-255.82638579,0.00013697,2]
[384129977,1757265944250,-206.29939703,0.00013697,2]
[384129978,1757265944279,-1200.0,0.00013697,2]
[384129979,1757265944308,-300.0,0.00013697,2]
[384129980,1757265944337,-480.0,0.00013698,2]
[384129981,1757265944367,-480.0,0.00013698,2]
[384129982,1757265944396,-480.0,0.00013698,2]
[384129983,1757265944426,-518.09,0.00013698,2]
[384129984,1757265944457,-614.07497816,0.00013698,2]
[384129985,1757265944659,-931.42847804,0.00013698,2]
[384129986,1757265944691,-480.0,0.00013698,2]
[384129987,1757265944721,-480.0,0.00013698,2]
[384129988,1757265944752,-480.0,0.00013698,2]
[384129989,1757265944781,-480.0,0.00013698,2]
[384129990,1757265944809,-480.0,0.00013698,2]
[384129991,1757265944839,-593.59,0.00013698,2]
[384129992,1757265944867,-480.0,0.00013698,2]
[384129993,1757265944896,-480.0,0.00013698,2]
[384129994,1757265945078,-480.0,0.00013698,2]
[384129995,1757265945225,-480.0,0.00013698,2]
[384129996,1757265945255,-480.0,0.00013698,2]
[384129997,1757265945284,-480.0,0.00013698,2]
[384129998,1757265945312,-264.46885906,0.00013698,2]
[384129999,1757265945343,-672.0,0.00013698,2]
[384130000,1757265945376,-639.42,0.00013698,2]
[384130001,1757265945405,-480.0,0.00013698,2]
[384130002,1757265945436,-496.33,0.00013698,2]
[384130003,1757265945466,-480.0,0.00013698,2]
[384130004,1757265945549,-480.0,0.00013698,2]
[384130005,1757265945578,-480.0,0.00013698,2]
[384130006,1757265945608,-480.0,0.00013698,2]
[384130007,1757265945637,-480.0,0.00013698,2]
[384130008,1757265945665,-699.24,0.00013698,2]
[384130009,1757265945694,-480.0,0.00013698,2]
[384130010,1757265945722,-157.0,0.00013698,2]
[384130011,1757265945751,-570.98,0.00013698,2]
[384130012,1757265945781,-480.0,0.00013698,2]
[384130013,1757265945811,-480.0,0.00013698,2]
[384130014,1757265945838,-176.7701287,0.00013698,2]
[384130015,1757265945956,-72.0297426,0.00013698,2]
[384130016,1757265945984,-480.0,0.00013698,2]
[384130017,1757265946012,-480.0,0.00013698,2]
[384130018,1757265946041,-480.0,0.00013698,2]
[384130019,1757265946070,-977.0,0.00013698,2]
[384130020,1757265946099,-538.01627563,0.00013698,2]
[384130021,1757265946126,-480.0,0.00013698,2]
[384130022,1757265946152,-480.0,0.00013698,2]
[384130023,1757265946181,-480.0,0.00013698,2]
[384130024,1757265946209,-480.0,0.00013698,2]
[384130025,1757265946341,-480.0,0.00013698,2]
[384130026,1757265946373,-480.0,0.00013698,2]